fUSD/lending_fUSD_20240104
["ID","MTS","AMOUNT","RATE_DAILY","PERIOD"]
[310112753,1704354632545,-160.34906175,0.00022866,2]
[310112755,1704354632555,-150.0,0.00022899,2]
[310112757,1704354632564,-305.36373252,0.000229,2]
[310112759,1704354632574,-160.34906175,0.000229,2]
[310112760,1704354632584,-590.27979796,0.000229,2]
[310112762,1704354632594,-403.14118684,0.000229,2]
[310112764,1704354632603,-3399.81985525,0.00022996,2]
[310112766,1704354632616,-844.8455585,0.00022996,2]
[310112768,1704354632628,-699.23427772,0.00022996,2]
[310112772,1704354632649,-3811.54030853,0.00022996,2]
[310112774,1704354632658,-206.0,0.00022996,2]
[310112775,1704354632668,-803.93815266,0.00022999,2]
[310112829,1704354638487,-898.26265685,0.00022999,2]
[310112830,1704354638507,-186.20647521,0.00022999,2]
[310112831,1704354638518,-191.51289122,0.00022999,2]
[310112832,1704354638529,-300.0,0.00022999,2]
[310112833,1704354638539,-300.0,0.00022999,2]
[310112834,1704354638550,-300.0,0.00022999,2]
[310112835,1704354638560,-300.0,0.00022999,2]
[310112836,1704354638570,-300.0,0.00022999,2]
[310112837,1704354638579,-300.0,0.00022999,2]
[310112838,1704354638590,-300.0,0.00022999,2]
[310112839,1704354638600,-300.0,0.00022999,2]
[310112840,1704354638610,-739456.27136799,0.00023,2]
[310112841,1704354638624,-301923.84085912,0.00023,2]
[310112842,1704354638668,-2742.38597111,0.00023,2]
[310112843,1704354640743,-2276.15993317,0.00023,2]
[310112844,1704354641461,-429.75,0.00023,2]
[310112845,1704354641783,-1996.30217657,0.00023,2]
[310112877,1704354643214,-0.0014776,0.00023,2]
[310112890,1704354643367,-7885.05962947,0.00023,2]
[310112895,1704354643459,-13670.25457494,0.00023,2]
[310112932,1704354646511,-180.22983922,0.00022999,2]
[310112933,1704354646521,-694.66981236,0.00023,2]
[310112934,1704354646533,-349.85921727,0.00023,2]
[310112935,1704354646548,-6538.2884126,0.00023,2]
[310112936,1704354646560,-29582.16114581,0.00023,2]
[310112937,1704354646571,-5357.0349838,0.00023,2]
[310112938,1704354646588,-3850.36506254,0.00023,2]
[310112939,1704354646600,-26979.88629355,0.00023,2]
[310112940,1704354646611,-3191.47582479,0.00023,2]
[310112946,1704354667914,193.09,0.00026071,120]
[310112948,1704354727512,3494.05863232,0.000199,3]
[310112980,1704354755478,219.98912518,0.0002211,2]
[310112984,1704354782592,1057.28494858,0.000225,2]
[310112985,1704354806857,18542.51601289,0.000225,2]
[310112986,1704354819871,856.74,0.0002299,7]
[310112994,1704355054190,265.51252242,0.00022,2]
[310113007,1704355222606,159.72882363,0.00022442,2]
[310113008,1704355235183,1594.81040522,0.000176,2]
[310113009,1704355253172,1601.2982557,0.00017954,2]
[310113010,1704355423528,15659.35414004,0.00017954,2]
[310113011,1704355436775,150.0,0.00022,2]
[310113012,1704355439520,15725.34723667,0.00017954,2]
[310113013,1704355456800,155.0,0.00022,2]
[310113014,1704355458572,844.46664072,0.0002,2]
[310113016,1704355472795,155.53958813,0.00022,2]
[310113017,1704355478556,847.42656863,0.0002,2]
[310113018,1704355505264,150.0,0.00022,2]
[310113019,1704355566175,863.54,0.00022392,2]
[310113020,1704355573457,150.0,0.00022,2]
[310113021,1704355581667,800.0,0.000223,2]
[310113022,1704355592560,166.5,0.00022467,2]
[310113023,1704355638691,5175.7863842,0.00022467,2]
[310113024,1704355641575,150.0,0.00022,2]
[310113025,1704355644858,350.21,0.00022501,2]
[310113026,1704355654833,2616.19735922,0.00022467,2]
[310113027,1704355662209,170.83,0.00017697,2]
[310113028,1704355678874,219.77824073,0.000225,2]
[310113029,1704355679081,155.06,0.00022453,2]
[310113030,1704355704301,625.86,0.0002032,2]
[310113031,1704355709857,218.92630319,0.00022,2]
[310113032,1704355735973,727.41794714,0.000225,2]
[310113033,1704355749968,173.33483218,0.00021,2]
[310113041,1704355785083,368.62766188,0.00022,2]
[310113042,1704355789895,338.97,0.00022189,2]
[310113045,1704355795624,519.90368084,0.00021,2]
[310113046,1704355804434,150.5788,0.00022276,2]
[310113050,1704355820080,10584.14,0.00022152,2]
[310113058,1704355832399,-1100.0,0.00022507,2]
[310113059,1704355832412,-567.0516138,0.00022507,2]
[310113060,1704355832514,-1845.0,0.00022507,2]
[310113061,1704355832525,-518.7469571,0.00022507,2]
[310113062,1704355832580,-582.13419804,0.00022507,2]
[310113063,1704355832590,-171.48,0.00022508,2]
[310113064,1704355832599,-7245.23773789,0.00022508,2]
[310113065,1704355832611,-3682.03452727,0.00022508,2]
[310113066,1704355832622,-576.32490571,0.00022508,2]
[310113067,1704355832647,-3160.67274254,0.00022508,2]
[310113128,1704355838427,-3298.71451214,0.00022508,2]
[310113129,1704355838440,-2362.49594596,0.00022508,2]
[310113130,1704355838451,-1490.23892715,0.00022508,2]
[310113131,1704355838547,-1285.22235789,0.00022508,2]
[310113132,1704355838558,-799.05834345,0.00022508,2]
[310113133,1704355838567,-152.20297927,0.00022542,2]
[310113134,1704355838721,-347.79702073,0.00022542,2]
[310113135,1704355838731,-281.89719396,0.00022542,2]
[310113136,1704355838740,-282.31252591,0.00022542,2]
[310113137,1704355838750,-854.32637403,0.00022542,2]
[310113138,1704355838760,-6064.68281951,0.00022542,2]
[310113139,1704355838769,-155.0,0.00022542,2]
[310113140,1704355838780,-542.57213765,0.00022542,2]
[310113141,1704355838789,-606.87411409,0.00022542,2]
[310113142,1704355838798,-500.0,0.00022582,2]
[310113143,1704355838807,-166.52,0.00022582,2]
[310113144,1704355838816,-625.86,0.00022583,2]
[310113146,1704355838825,-166.5,0.00022662,2]
[310113147,1704355838836,-176.8,0.00022737,2]
[310113148,1704355838847,-1137.14799076,0.000228,2]
[310113149,1704355838856,-200.0,0.00022839,2]
[310113150,1704355838866,-166.5,0.00022858,2]
[310113151,1704355838875,-752.76048375,0.00022898,2]
[310113153,1704355838885,-159.98061969,0.00022898,2]
[310113154,1704355838894,-1358.59345662,0.00022898,2]
[310113155,1704355838904,-2983.10898853,0.00022898,2]
[310113156,1704355838913,-8632.20142762,0.00022898,2]
[310113157,1704355838922,-402.08462827,0.00022899,2]
[310113158,1704355838932,-164.82714695,0.00022899,2]
[310113159,1704355838941,-261.67078312,0.00022899,2]
[310113160,1704355838951,-1000.0,0.000229,2]
[310113162,1704355838960,-936.1967,0.000229,2]
[310113163,1704355838969,-192.03673842,0.000229,2]
[310113164,1704355838977,-279.91675481,0.000229,2]
[310113165,1704355838986,-724.90126633,0.000229,2]
[310113166,1704355838996,-1000.0,0.000229,2]
[310113167,1704355839005,-282407.5095,0.000229,2]
[310113168,1704355839015,-268.76079122,0.000229,2]
[310113169,1704355839024,-1246.62862632,0.000229,2]
[310113170,1704355839034,-379.83091479,0.00022998,2]
[310113171,1704355839043,-269.99485082,0.00022998,2]
[310113172,1704355839053,-210.2658615,0.00022998,2]
[310113173,1704355839293,-286.7432827,0.00022998,2]
[310113174,1704355839303,-805.64857158,0.00022998,2]
[310113175,1704355839312,-155.47575455,0.00022998,2]
[310113176,1704355839323,-775.06288642,0.00022998,2]
[310113177,1704355839334,-158.35556998,0.00022998,2]
[310113178,1704355839344,-24232.90879087,0.00022998,2]
[310113179,1704355839353,-168.38489144,0.00022998,2]
[310113180,1704355839363,-288.74290699,0.00022998,2]
[310113181,1704355839372,-214.24001035,0.00022998,2]
[310113182,1704355839381,-4847.42967548,0.00022999,2]
[310113183,1704355839391,-406.30757453,0.00022999,2]
[310113184,1704355839401,-345.66681731,0.00022999,2]
[310113185,1704355839423,-300.0,0.00022999,2]
[310113186,1704355839433,-300.0,0.00022999,2]
[310113187,1704355839443,-300.0,0.00022999,2]
[310113188,1704355839453,-300.0,0.00022999,2]
[310113189,1704355839462,-300.0,0.00022999,2]
[310113190,1704355839473,-300.0,0.00022999,2]
[310113191,1704355839482,-300.0,0.00022999,2]
[310113192,1704355839492,-300.0,0.00022999,2]
[310113193,1704355839504,-300.0,0.00022999,2]
[310113194,1704355839514,-300.0,0.00022999,2]
[310113195,1704355839524,-300.0,0.00022999,2]
[310113196,1704355839534,-300.0,0.00022999,2]
[310113197,1704355839545,-300.0,0.00022999,2]
[310113198,1704355839555,-300.0,0.00022999,2]
[310113199,1704355839565,-300.0,0.00022999,2]
[310113200,1704355839577,-300.0,0.00022999,2]
[310113201,1704355839589,-300.0,0.00022999,2]
[310113202,1704355839599,-300.0,0.00022999,2]
[310113203,1704355839609,-300.0,0.00022999,2]
[310113204,1704355839620,-300.0,0.00022999,2]
[310113205,1704355839630,-384865.24492039,0.00023,2]
[310113206,1704355839644,-301923.84085912,0.00023,2]
[310113207,1704355839657,-2443.44176959,0.00023,2]
[310113208,1704355839678,-524.28932216,0.00023,2]
[310113212,1704355840971,-2028.0378247,0.00022507,2]
[310113213,1704355841728,-2387.49016482,0.00022507,2]
[310113214,1704355841737,-31116.06816334,0.00023,2]
[310113215,1704355841750,-61859.2679171,0.00023,2]
[310113216,1704355841847,-612.27466,0.00023,2]
[310113226,1704355843320,-150.80533719,0.000229,2]
[310113228,1704355843329,-227.09684034,0.00023,2]
[310113234,1704355843380,-296.95776435,0.00023,2]
[310113236,1704355843390,-1060.31500001,0.00023,2]
[310113238,1704355843401,-566.62860673,0.00023,2]
[310113249,1704355843497,-28103.55974391,0.00023,2]
[310113257,1704355843565,-22048.48747079,0.00023,2]
[310113259,1704355843578,-3728.97941896,0.00023,2]
[310113266,1704355843634,-1610.1893674,0.00023,2]
[310113288,1704355846403,-421.6775717,0.00023,2]
[310113289,1704355846463,-1445.347011,0.00023,2]
[310113290,1704355846523,-354.93918003,0.00023,2]
[310113291,1704355846584,-5552.35,0.00023,2]
[310113292,1704355846713,-17733.59850553,0.00023,2]
[310113293,1704355846725,-8193.80401307,0.00023,2]
[310113296,1704355876665,3180.66829188,0.00022077,2]
[310113297,1704356030700,3033.081686,0.00022406,2]
[310113298,1704356044249,259.74,0.0002246,2]
[310113299,1704356062658,360.0,0.00022441,2]
[310113301,1704356091374,887.85,0.00022483,2]
[310113302,1704356100017,23900.0,0.00022445,2]
[310113303,1704356196444,650.8,0.00020468,2]
[310113304,1704356240709,150.63,0.00022298,2]
[310113306,1704356317919,-219.77824073,0.00022518,2]
[310113307,1704356317957,-155.74,0.00022519,2]
[310113308,1704356317991,-2300.49008254,0.00022546,2]
[310113309,1704356318024,-166.5,0.00022547,2]
[310113310,1704356318057,-709.8524,0.00022566,2]
[310113311,1704356318091,-365.96659992,0.00022632,2]
[310113312,1704356318123,-385.11938056,0.00022666,2]
[310113313,1704356318154,-95696.55329625,0.00022667,2]
[310113314,1704356326464,-36352.15908844,0.00022667,2]
[310113315,1704356326498,-158.16134451,0.00022667,2]
[310113316,1704356326533,-63489.67956705,0.00022668,2]
[310113317,1704356345635,-219.77824073,0.00022667,2]
[310113318,1704356345661,-2300.49008254,0.00022667,2]
[310113319,1704356345686,-45000.3018276,0.00022667,2]
[310113320,1704356345712,-52479.42984913,0.00022668,2]
[310113321,1704356347650,-100000.0,0.00022668,2]
[310113322,1704356348929,-100000.0,0.00022668,2]
[310113323,1704356350044,-100000.0,0.00022668,2]
[310113324,1704356353245,-100000.0,0.00022668,2]
[310113325,1704356356434,-100000.0,0.00022668,2]
[310113326,1704356446722,2507.23372484,0.00021759,2]
[310113327,1704356450605,5000.0,0.00029,30]
[310113328,1704356461865,169.48,0.00022197,2]
[310113350,1704356501313,175.54,0.00022204,2]
[310113355,1704356525345,157.44,0.00022367,2]
[310113357,1704356558084,868.78,0.00022039,2]
[310113358,1704356564798,712.0,0.00021987,2]
[310113359,1704356579360,12931.9,0.00021987,2]
[310113361,1704356597795,157.0,0.00022201,2]
[310113362,1704356644678,166.5,0.00022371,2]
[310113363,1704356753229,637.22,0.00020187,2]
[310113364,1704356753608,637.22,0.00022451,2]
[310113365,1704356890223,351.46,0.00022,2]
[310113366,1704356913744,206.0,0.00022163,2]
[310113367,1704356932420,169.48,0.00022006,2]
[310113368,1704357002660,430.4,0.00021967,2]
[310113370,1704357014667,810.86,0.0002199,2]
[310113374,1704357031544,-158.1613445,0.00022566,2]
[310113375,1704357031553,-260.0,0.00022566,2]
[310113376,1704357031563,-236.22369618,0.00022567,2]
[310113377,1704357031574,-150.0,0.00022581,2]
[310113378,1704357031584,-2668.84072558,0.00022591,2]
[310113379,1704357031593,-2300.49008254,0.00022591,2]
[310113380,1704357031602,-689.64094484,0.00022592,2]
[310113381,1704357031614,-242.35905516,0.00022592,2]
[310113382,1704357031623,-1015.44027652,0.00022633,2]
[310113383,1704357031632,-150.0,0.00022665,2]
[310113384,1704357031642,-2262.84991875,0.00022666,2]
[310113385,1704357031651,-311.84676827,0.00022666,2]
[310113386,1704357031660,-306.28504271,0.00022666,2]
[310113387,1704357031670,-873.51984646,0.00022666,2]
[310113388,1704357031679,-506.50570835,0.00022666,2]
[310113389,1704357031688,-4341.53338378,0.00022666,2]
[310113390,1704357031700,-448.87925568,0.00022666,2]
[310113391,1704357031712,-849.08324174,0.00022666,2]
[310113392,1704357031727,-350.0,0.00022666,2]
[310113393,1704357031738,-275.70528428,0.00022666,2]
[310113394,1704357031769,-1003.29,0.00022666,2]
[310113395,1704357031781,-20922.23965269,0.00022666,2]
[310113396,1704357031791,-233.65624485,0.00022666,2]
[310113397,1704357031800,-155.35056485,0.00022667,2]
[310113398,1704357031809,-18677.2634508,0.00022667,2]
[310113399,1704357031822,-4715.7820356,0.00022667,2]
[310113400,1704357031831,-2179.02,0.00022667,4]
[310113401,1704357031841,-1192.67302176,0.00022667,4]
[310113402,1704357031853,-301.60288366,0.00022667,4]
[310113403,1704357031868,-250.0,0.00022667,4]
[310113404,1704357031884,-434.74409458,0.00022667,4]
[310113405,1704357031894,-2139.30115374,0.00022667,4]
[310113406,1704357031911,-39.71884626,0.00022667,4]
[310113408,1704357031921,-359.48345484,0.00022667,4]
[310113411,1704357031932,-558.52308031,0.00022667,4]
[310113458,1704357040398,-1261.01346485,0.00022667,4]
[310113459,1704357040407,-443.76122414,0.00022667,4]
[310113460,1704357040418,-395.796,0.00022667,4]
[310113461,1704357040431,-325.45316,0.00022667,4]
[310113462,1704357040442,-400.356,0.00022667,4]
[310113463,1704357040453,-613.65361586,0.00022667,4]
[310113464,1704357040462,-674.93638414,0.00022667,4]
[310113465,1704357040474,-979.31412629,0.00022667,4]
[310113466,1704357040494,-317.81641209,0.00022667,4]
[310113467,1704357040591,-206.95307748,0.00022667,4]
[310113468,1704357040600,-1338.70457505,0.00022667,4]
[310113469,1704357040689,-840.31542495,0.00022667,4]
[310113470,1704357040727,-2179.02,0.00022667,4]
[310113471,1704357040737,-2179.02,0.00022667,4]
[310113472,1704357040747,-2179.02,0.00022667,4]
[310113473,1704357040756,-2179.02,0.00022667,4]
[310113474,1704357040766,-2179.02,0.00022667,4]
[310113475,1704357040775,-2179.02,0.00022667,4]
[310113476,1704357040785,-2179.02,0.00022667,4]
[310113477,1704357040794,-2179.02,0.00022667,4]
[310113478,1704357040803,-2179.02,0.00022667,4]
[310113479,1704357040813,-2179.02,0.00022667,4]
[310113480,1704357040823,-2179.02,0.00022667,4]
[310113481,1704357040833,-2179.02,0.00022667,4]
[310113482,1704357040843,-2179.02,0.00022667,4]
[310113483,1704357040852,-2179.02,0.00022667,4]
[310113484,1704357040862,-2179.02,0.00022667,4]
[310113485,1704357040871,-2179.02,0.00022667,4]
[310113486,1704357040881,-2179.1864865,0.00022667,4]
[310113487,1704357040891,-216527.63278382,0.00022668,2]
[310113491,1704357040900,-159.51,0.00022733,2]
[310113492,1704357041092,-236.22369618,0.00022734,2]
[310113493,1704357041102,-495.50053647,0.00022768,2]
[310113494,1704357041111,-25129.89464615,0.00022768,2]
[310113495,1704357041121,-253.25753534,0.000228,2]
[310113496,1704357041130,-157.44,0.00022814,2]
[310113497,1704357041139,-432.12067261,0.000229,2]
[310113498,1704357041149,-256.59035853,0.000229,2]
[310113499,1704357041158,-236.22369618,0.000229,2]
[310113500,1704357041167,-831.08575088,0.000229,2]
[310113501,1704357041176,-166.5,0.00022954,2]
[310113503,1704357041185,-810.86,0.00022969,2]
[310113504,1704357041195,-179.548585,0.0002299,2]
[310113506,1704357041205,-179.548585,0.0002299,2]
[310113508,1704357041213,-375.58716419,0.00022998,2]
[310113509,1704357041222,-220.31430902,0.00022998,2]
[310113510,1704357041231,-2311.84957397,0.00022998,2]
[310113511,1704357041242,-1547.96249742,0.00022998,2]
[310113512,1704357041251,-369.92055027,0.00022998,2]
[310113513,1704357041261,-11737.50654805,0.00022999,2]
[310113514,1704357041270,-5519.37651331,0.00022999,2]
[310113515,1704357041280,-244.08411725,0.00022999,2]
[310113516,1704357041291,-1666.4734637,0.00022999,2]
[310113517,1704357041300,-263.01526021,0.00022999,2]
[310113518,1704357041311,-1184.93777412,0.00022999,2]
[310113519,1704357041323,-300.0,0.00022999,2]
[310113520,1704357041334,-300.0,0.00022999,2]
[310113521,1704357041343,-300.0,0.00022999,2]
[310113522,1704357041353,-300.0,0.00022999,2]
[310113523,1704357041363,-300.0,0.00022999,2]
[310113524,1704357041375,-300.0,0.00022999,2]
[310113525,1704357041385,-300.0,0.00022999,2]
[310113526,1704357041395,-300.0,0.00022999,2]
[310113527,1704357041405,-300.0,0.00022999,2]
[310113528,1704357041414,-300.0,0.00022999,2]
[310113529,1704357041424,-300.0,0.00022999,2]
[310113530,1704357041434,-300.0,0.00022999,2]
[310113531,1704357041448,-300.0,0.00022999,2]
[310113532,1704357041459,-300.0,0.00022999,2]
[310113533,1704357041470,-300.0,0.00022999,2]
[310113534,1704357041481,-300.0,0.00022999,2]
[310113535,1704357041493,-300.0,0.00022999,2]
[310113536,1704357041504,-300.0,0.00022999,2]
[310113537,1704357041515,-300.0,0.00022999,2]
[310113538,1704357041525,-300.0,0.00022999,2]
[310113539,1704357041535,-69488.45839127,0.00023,2]
[310113540,1704357041816,-301923.84085912,0.00023,2]
[310113541,1704357041829,-399.37201755,0.00023,2]
[310113542,1704357041842,-2103.3787534,0.00023,2]
[310113543,1704357041869,-3002.64201615,0.00023,2]
[310113544,1704357041881,-251.31096207,0.00023,2]
[310113545,1704357041893,-1335.6738995,0.00023,2]
[310113546,1704357041915,-3466.66028671,0.00023,2]
[310113547,1704357041926,-1111.11431249,0.00023,2]
[310113548,1704357041954,-748.68438005,0.00023,2]
[310113559,1704357042666,-21457.83,0.00023,2]
[310113560,1704357042862,-2985.00400096,0.00023,2]
[310113561,1704357042874,-2270.37407924,0.00023,2]
[310113572,1704357045631,-2300.49008254,0.00022998,2]
[310113573,1704357045641,-9305.4228858,0.00023,2]
[310113574,1704357045874,-531.25221699,0.00023,2]
[310113575,1704357045906,-21473.8040844,0.00023,2]
[310113581,1704357060802,2684.20647902,0.00022078,2]
[310113582,1704357063913,208.0,0.00022163,2]
[310113583,1704357071063,200.23916985,0.00022052,2]
[310113585,1704357251838,1182.72277374,0.00022486,2]
[310113586,1704357278533,1037.885133,0.00022479,2]
[310113587,1704357866688,573.49,0.0002043,2]
[310113588,1704357870810,756.8,0.00022367,2]
[310113591,1704357943029,6505.09,0.00022357,2]
[310113592,1704357968023,176.03,0.00022357,2]
[310113593,1704358010710,344.32,0.00022302,2]
[310113594,1704358069900,500.0,0.00022252,2]
[310113595,1704358142970,2680.343379,0.00022991,7]
[310113620,1704358231748,-155.29559715,0.00022511,2]
[310113622,1704358231758,-166.52,0.00022536,2]
[310113623,1704358231768,-2300.49008254,0.00022591,2]
[310113624,1704358231777,-2002.54347678,0.00022592,2]
[310113625,1704358231787,-185.83,0.00022611,2]
[310113626,1704358231796,-155.06,0.00022613,2]
[310113627,1704358231806,-573.49,0.00022694,2]
[310113628,1704358231815,-42398.3486,0.000227,2]
[310113629,1704358231825,-828.7832,0.000227,2]
[310113630,1704358231833,-205.3169,0.000227,2]
[310113631,1704358231843,-1068.52,0.000227,2]
[310113632,1704358231853,-3646.2089,0.000227,2]
[310113633,1704358231862,-253.25753534,0.000228,2]
[310113634,1704358231871,-43979.65748047,0.000228,2]
[310113635,1704358231883,-1610.07003816,0.000228,2]
[310113636,1704358231912,-1759.27377764,0.000228,2]
[310113637,1704358232038,-722.30882622,0.000228,2]
[310113638,1704358232050,-493.99715234,0.000228,2]
[310113639,1704358232117,-2410.07537458,0.000228,2]
[310113652,1704358237899,-7525.2818703,0.000228,2]
[310113653,1704358237960,-2176.78237864,0.000228,2]
[310113654,1704358237972,-39322.55310165,0.000228,2]
[310113655,1704358237982,-40325.3741,0.000228,2]
[310113656,1704358237991,-655.68,0.00022835,2]
[310113657,1704358238002,-155.24194201,0.00022884,2]
[310113658,1704358238011,-1002.91,0.000229,2]
[310113659,1704358238021,-22970.90220266,0.000229,2]
[310113660,1704358238033,-222029.09779734,0.000229,2]
[310113661,1704358238043,-432.12067261,0.000229,2]
[310113662,1704358238052,-256.59035853,0.000229,2]
[310113663,1704358238062,-179.17386082,0.000229,2]
[310113664,1704358238071,-831.08575088,0.000229,2]
[310113665,1704358238081,-179.548585,0.0002299,2]
[310113666,1704358238090,-179.548585,0.0002299,2]
[310113667,1704358238100,-1666.4734637,0.00022998,2]
[310113668,1704358238110,-244.08411725,0.00022998,2]
[310113669,1704358238120,-5519.37651331,0.00022998,2]
[310113670,1704358238129,-369.92055027,0.00022998,2]
[310113671,1704358238139,-3700.215633,0.00022998,2]
[310113672,1704358238149,-2311.84957397,0.00022998,2]
[310113673,1704358238159,-375.58716419,0.00022998,2]
[310113674,1704358238168,-220.31430902,0.00022998,2]
[310113675,1704358238178,-11737.50654805,0.00022999,2]
[310113676,1704358238188,-1184.93777412,0.00022999,2]
[310113677,1704358238198,-263.01526021,0.00022999,2]
[310113678,1704358238207,-300.0,0.00022999,2]
[310113679,1704358238217,-300.0,0.00022999,2]
[310113680,1704358238227,-300.0,0.00022999,2]
[310113681,1704358238236,-300.0,0.00022999,2]
[310113682,1704358238257,-300.0,0.00022999,2]
[310113683,1704358238267,-300.0,0.00022999,2]
[310113684,1704358238276,-300.0,0.00022999,2]
[310113685,1704358238284,-300.0,0.00022999,2]
[310113686,1704358238294,-300.0,0.00022999,2]
[310113687,1704358238304,-300.0,0.00022999,2]
[310113688,1704358238314,-300.0,0.00022999,2]
[310113689,1704358238323,-300.0,0.00022999,2]
[310113690,1704358238333,-300.0,0.00022999,2]
[310113691,1704358238343,-300.0,0.00022999,2]
[310113692,1704358238353,-300.0,0.00022999,2]
[310113693,1704358238362,-300.0,0.00022999,2]
[310113695,1704358238372,-300.0,0.00022999,2]
[310113697,1704358238381,-300.0,0.00022999,2]
[310113699,1704358238391,-300.0,0.00022999,2]
[310113700,1704358238401,-300.0,0.00022999,2]
[310113701,1704358238410,-44243.39434185,0.00023,2]
[310113702,1704358238436,-1449.12756339,0.00023,2]
[310113703,1704358238453,-1998.50562,0.00023,2]
[310113704,1704358238466,-1787.60399912,0.00023,2]
[310113705,1704358238481,-358.33485164,0.00023,2]
[310113706,1704358240450,-9131.84262138,0.00023,2]
[310113707,1704358240470,-588.6612,0.00023,2]
[310113730,1704358242873,-235.70245216,0.00022999,2]
[310113731,1704358242883,-585735.70371826,0.00023,2]
[310113732,1704358242893,-302960.98511034,0.00023,2]
[310113733,1704358242919,-575.4000002,0.00023,2]
[310113734,1704358242945,-3964.60122174,0.00023,2]
[310113735,1704358242958,-31575.51517439,0.00023,2]
[310113736,1704358242975,-1592.32800944,0.00023,2]
[310113749,1704358245904,-301.3825938,0.00022999,2]
[310113750,1704358245919,-707.74103951,0.00022999,2]
[310113751,1704358245970,-32.07569244,0.00022999,2]
[310113752,1704358245980,-2035.20345227,0.00023,2]
[310113753,1704358245992,-980.4,0.00023,2]
[310113754,1704358246005,-2500.02004,0.00023,2]
[310113755,1704358246016,-7528.9999999,0.00023,2]
[310113756,1704358246028,-2533.63750155,0.00023,2]
[310113757,1704358246157,-42931.30197011,0.00023,2]
[310113758,1704358253243,359.77442061,0.00018398,2]
[310113760,1704358260959,3180.66829188,0.00022078,2]
[310113783,1704358287573,571.09079843,0.00022,2]
[310113791,1704358310958,2198.03735021,0.00022076,2]
[310113792,1704358315993,300.0,0.000226,8]
[310113793,1704358318047,700.0,0.000227,8]
[310113794,1704358320140,1100.0,0.000228,8]
[310113795,1704358322231,1400.0,0.000229,8]
[310113796,1704358377524,666.4,0.00020507,2]
[310113797,1704358387634,1520.24,0.00022404,2]
[310113798,1704358399800,193.67,0.00022314,2]
[310113799,1704358400170,193.67,0.00022431,2]
[310113800,1704358414540,200.0,0.00022056,2]
[310113804,1704358448205,1622.11,0.00021977,2]
[310113812,1704358463151,23900.0,0.00021951,2]
[310113813,1704358484148,250.0,0.00021925,2]
[310113814,1704358510475,257348.93002692,0.00029,30]
[310113815,1704358514535,724.54,0.00021977,2]
[310113816,1704358577637,22295.52,0.00021992,2]
[310113817,1704358610078,153.44,0.0002211,2]
[310113818,1704358610505,153.44,0.00022192,2]
[310113819,1704358610708,153.44,0.00022274,2]
[310113820,1704358610934,153.44,0.00022357,2]
[310113821,1704358611152,153.44,0.00022439,2]
[310113822,1704358612194,258.97,0.00021945,2]
[310113823,1704358630304,159.84,0.00022072,2]
[310113824,1704358630513,159.84,0.00022368,2]
[310113825,1704358671859,200.0,0.00021837,2]
[310113826,1704358676393,908.51,0.00021837,2]
[310113827,1704358712039,490.31,0.0002182,2]
[310113828,1704358788671,200.0,0.00021823,2]
[310113829,1704358822279,633.08,0.00019908,2]
[310113830,1704358822699,633.08,0.00022171,2]
[310113836,1704358836122,1418.89,0.0002184,2]
[310113841,1704358877507,167.55372254,0.00022446,2]
[310113842,1704358882538,167.55372245,0.0002247,2]
[310113843,1704358887635,167.55372245,0.00022494,2]
[310113851,1704358894472,332.98,0.00021831,2]
[310113852,1704358894630,3287.35,0.00021831,2]
[310113853,1704358897199,157.3,0.00021822,2]
[310113854,1704358897391,157.3,0.00021937,2]